Cogmind - Beta 13 *** ADVENTURER MODE // 2024.04.03 @ 09:48:33 Player: Compilatron Result: Self-destructed Performance ------------- Evolutions (2) 1000 Regions Visited (5) 1000 Robots Destroyed (49) 245 Value Destroyed (1121) 1121 Prototype IDs (23) 460 Alien Tech Used (0) 0 Bonus (151) 151 TOTAL SCORE: 3977 Bonus ------- Follower Combat Kills 46 Aligned with FarCom 300 Friendly Fire -195 Cogmind --------- Core Integrity 505/550 Matter 300/300 Energy 240/240 System Corruption 0% Temperature Cool (0) Movement Treading (240) Ox1 Location -8/Materials Parts ------- > --- POWER (1) -------- Nuclear Core > --- PROPULSION (4) --- Light Treads Light Treads Light Treads Light Treads > --- UTILITY (4) ------ Huge Storage Unit Advanced Visual Processing Unit Seismic Detector Medium Armor Plating > --- WEAPON (2) ------- Shock Rifle Assault Rifle > --- INVENTORY (25) --- Light Treads VTOL Module VTOL Module VTOL Module VTOL Module VTOL Module VTOL Module VTOL Module VTOL Module Sensor Array 0b10 Alert Chip Hacking Suite System Shield Mining Laser Welding Torch Mining Claw Peak State ------------ > --- POWER ------------ Nuclear Core > --- PROPULSION ------- Light Treads Light Treads Light Treads Light Treads > --- UTILITY ---------- Huge Storage Unit Advanced Visual Processing Unit Seismic Detector Medium Armor Plating > --- WEAPON ----------- Shock Rifle Assault Rifle > --- INVENTORY -------- Light Treads VTOL Module VTOL Module VTOL Module VTOL Module VTOL Module VTOL Module VTOL Module VTOL Module Sensor Array 0b10 Alert Chip Light Armor Plating Light Armor Plating Hacking Suite Mining Laser Welding Torch Mining Claw [Rating: 21] Favorites ----------- Power Ion Engine Engine Ion Engine Power Core Nuclear Core Propulsion Light Treads Treads Light Treads Utility Huge Storage Unit Device Terrain Scanner Storage Huge Storage Unit Processor Advanced Visual Processing Unit Protection Medium Armor Plating Weapon Assault Rifle Energy Gun Shock Rifle Ballistic Gun Assault Rifle Launcher Rocket Launcher Slashing Weapon Mining Claw Build | -11 -10 -10 -10 -9 -8 ------- Run | Yrd Mat Min Exi Min Mat Slots Evolved 4 | . . . . . 4 Power . | . . . . . . Propulsion 2 | . . . . . 2 Utility 2 | . . . . . 2 Weapon . | . . . . . . Parts Attached 27 | 6 2 2 . 6 11 Power 3 | 1 . . . 1 1 Engine 2 | 1 . . . 1 . Core 1 | . . . . . 1 Reactor . | . . . . . . Propulsion 7 | 2 . . . 2 3 Treads 7 | 2 . . . 2 3 Leg . | . . . . . . Wheel . | . . . . . . Hover . | . . . . . . Flight . | . . . . . . Utility 9 | 1 2 . . . 6 Device 2 | . 1 . . . 1 Storage 2 | 1 1 . . . . Processor 2 | . . . . . 2 Hackware . | . . . . . . Protection 3 | . . . . . 3 Artifact . | . . . . . . Weapon 8 | 2 . 2 . 3 1 Energy Gun 1 | . . . . . 1 Energy Cannon . | . . . . . . Ballistic Gun 5 | 2 . . . 3 . Ballistic Cannon . | . . . . . . Launcher 1 | . . 1 . . . Special Weapon . | . . . . . . Impact Weapon . | . . . . . . Slashing Weapon 1 | . . 1 . . . Piercing Weapon . | . . . . . . Special Melee Weapon . | . . . . . . Unidentified Prototypes . | . . . . . . Parts Lost 7 | . . . . 7 . Power 1 | . . . . 1 . Propulsion 2 | . . . . 2 . Utility 1 | . . . . 1 . Weapon 3 | . . . . 3 . Highest Loss Streak 7 | . . . . 7 . To Critical Strikes . | . . . . . . Average Slot Usage (%) 96 | . 99 100 100 85 98 Engine 11 | . 14 14 14 12 . Core 1 | . . . . . 8 Treads 29 | . 28 28 28 27 34 Device 10 | . 13 14 14 2 8 Storage 13 | . 14 14 14 14 9 Processor 1 | . . . . . 9 Protection 1 | . . . . . 9 Energy Gun 1 | . . . . . 8 Ballistic Gun 18 | . 28 14 14 25 9 Launcher 3 | . . . 14 2 . Slashing Weapon 2 | . . 13 . . . Naked Turns . | . . . . . . Heaviest Build 100 | 14 90 92 92 92 100 Greatest Support 80 | 40 40 40 40 40 80 Greatest Overweight (x) 2 | 2 2 2 2 2 1 Average Overweight (x) 1 | . . 2 2 2 1 Largest Inventory Capacity 25 | 8 25 25 25 25 25 Average Capacity 22 | 7 14 25 25 25 25 Most Carried 21 | 6 19 20 21 21 17 Average Carried 16 | 2 10 19 20 16 14 Final Capacity 25 | 8 25 25 25 25 25 Final Carried 21 | 2 19 20 21 17 16 Class Distribution -------------------- 93% | Mutant 4% | Skirmisher Dominant Class ---------------- Mutant | -10/Materials Mutant | -10/Mines Mutant | -10/Exiles Mutant | -9/Mines Mutant | -8/Materials Resources | -11 -10 -10 -10 -9 -8 ----------- Run | Yrd Mat Min Exi Min Mat Matter Collected 1032 | 222 274 46 . 290 200 Remotely . | . . . . . . Salvage Created 1502 | . 517 166 . 359 460 Parts 99 | . 39 13 . 22 25 Haulers Intercepted 1 | . 1 . . . . Recyclers Shooed . | . . . . . . Parts Field Recycled . | . . . . . . Retrieved Matter . | . . . . . . Parts Self-Destructed . | . . . . . . Prevented . | . . . . . . Kills | -11 -10 -10 -10 -9 -8 ------- Run | Yrd Mat Min Exi Min Mat Combat Hostiles Destroyed 48 | . 11 10 . 21 6 Melee 1 | . . 1 . . . Guns 36 | . 11 4 . 15 6 AOE 11 | . . 5 . 6 . Classes Destroyed 12 | . 6 1 . 3 2 Worker 1 | . 1 . . . . Builder 1 | . 1 . . . . Hauler 1 | . 1 . . . . Watcher 5 | . 2 . . . 3 Swarmer 19 | . 3 9 . 7 . Grunt 15 | . 8 1 . 3 3 Brawler 1 | . . . . 1 . Duelist 1 | . . . . 1 . Sentry 2 | . . . . . 2 Hunter 1 | . . . . . 1 Zionite 2 | . . 1 . 1 . Assembled 9 | . . . . 9 . Best Kill Streak 9 | . 8 6 . 9 3 Combat Bots Only 9 | . 5 6 . 9 2 Max Kills in Single Turn 6 | . 1 6 . 3 1 Gunslinging . | . . . . . . Exploded 5 | . . 5 . 3 . Melee 1 | . . 1 . . . Uniques/NPCs Destroyed . | . . . . . . Combat | -11 -10 -10 -10 -9 -8 -------- Run | Yrd Mat Min Exi Min Mat Hostile Shots Fired 208 | . 42 22 . 101 43 Missed 59 | . 12 5 . 38 4 Damage Taken 1457 | . 265 164 . 598 430 Core 163 | . 64 30 . 24 45 Absorbed by Shields . | . . . . . . Ignored by Resistances 440 | . 84 51 . 182 123 Core Remaining (%) 76 | 100 . . . 52 . Volleys Fired 120 | . 36 9 . 45 30 Largest 2 | . 2 1 . 2 2 Hottest 70 | . 40 33 . 53 70 Shots Fired 213 | . 72 9 . 72 60 Gun 207 | . 72 8 . 67 60 Cannon . | . . . . . . Launcher 6 | . . 1 . 5 . Special . | . . . . . . Kinetic 177 | . 72 8 . 67 30 Thermal . | . . . . . . Explosive 6 | . . 1 . 5 . Electromagnetic 30 | . . . . . 30 Robot Hit Streak 33 | . 30 33 . 13 19 Robot Miss Streak 4 | . 3 1 . 4 2 Penetration Max . | . . . . . . Secondary Targets 5 | . 2 . . 3 . Max Gunslinging Chain 1 | . 1 . . 1 . Shots Hit Robots 165 | . 54 11 . 51 49 Core Hits 93 | . 25 12 . 34 22 Critical Kills . | . . . . . . Critical Parts Destroyed 3 | . 2 1 . . . Critical Strikes 3 | . 2 1 . . . Destroy 3 | . 2 1 . . . Melee Attacks 3 | . . 3 . . . Impact . | . . . . . . Slashing 3 | . . 3 . . . Piercing . | . . . . . . Sneak Attacks . | . . . . . . Combat Hostiles . | . . . . . . Follow-up Attacks . | . . . . . . Damage Inflicted 3503 | . 682 516 . 1411 894 Guns 2196 | . 682 86 . 629 799 Cannons . | . . . . . . Explosions 1231 | . . 358 . 778 95 Melee 72 | . . 72 . . . Ramming 4 | . . . . 4 . Kinetic 1669 | . 682 86 . 629 272 Thermal 95 | . . . . . 95 Explosive 1136 | . . 358 . 778 . Electromagnetic 527 | . . . . . 527 Impact . | . . . . . . Slashing 72 | . . 72 . . . Piercing . | . . . . . . Highest Corruption . | . . . . . . Average Corruption . | . . . . . . Corruption Purged . | . . . . . . Corruption Blocked . | . . . . . . Overload Shots . | . . . . . . Overflow Damage 25 | . . . . 25 . Projectiles . | . . . . . . Explosions 25 | . . . . 25 . Melee . | . . . . . . Knockbacks . | . . . . . . Impact . | . . . . . . Kinetic . | . . . . . . Secondary . | . . . . . . Self-Inflicted Damage 60 | . . 32 . 28 . Shots 2 | . . 1 . 1 . Rammed 1 | . . . . 1 . Targets Rammed 1 | . . . . 1 . Kicked . | . . . . . . Crushed . | . . . . . . Highest Temperature 123 | . 3 . . . 123 Average Temperature 32 | . 2 . . . 36 Received Heat Transfer 435 | . 153 45 . 84 153 Siege Activations . | . . . . . . Robots Corrupted . | . . . . . . Combat Hostiles . | . . . . . . Parts Fried 2 | . . . . . 2 Impact Corruptions . | . . . . . . Robots Melted . | . . . . . . Combat Hostiles . | . . . . . . Parts Melted . | . . . . . . Heat Transferred 50 | . . . . . 50 Parts Sabotaged . | . . . . . . Parts Stolen . | . . . . . . Parts Stripped . | . . . . . . Power Chain Reactions 2 | . . . . . 2 Alert | -11 -10 -10 -10 -9 -8 ------- Run | Yrd Mat Min Exi Min Mat Peak Influence 241 | . 198 241 . 104 202 Initial 3 | . . . . . 3 Average 40 | . 35 46 . 43 40 Maximum Alert Level 1 | . . 1 . . 1 Low Security (%) 98 | 100 100 94 . 100 98 Level 1 1 | . . 5 . . 1 Level 2 . | . . . . . . Level 3 . | . . . . . . Level 4 . | . . . . . . Level 5 . | . . . . . . High Security . | . . . . . . Max Security . | . . . . . . Squads Dispatched 3 | . 1 . . . 2 Investigation 1 | . 1 . . . . Extermination . | . . . . . . Reinforcement 2 | . . . . . 2 Assault . | . . . . . . Garrison . | . . . . . . Intercept . | . . . . . . Searches Triggered . | . . . . . . Construction Impeded . | . . . . . . Haulers Reinforced . | . . . . . . Active Scanning Responses . | . . . . . . Cargo Convoy Interrupts . | . . . . . . Stealth | -11 -10 -10 -10 -9 -8 --------- Run | Yrd Mat Min Exi Min Mat Distress Signals 4 | . 1 . . . 3 Communications Jammed . | . . . . . . Distress Signals . | . . . . . . Times Spotted 64 | . 14 13 . 22 15 Peak Tracking Total 8 | . 7 6 . 8 3 Tactical Retreats 2 | . . . . 2 . Traps | -11 -10 -10 -10 -9 -8 ------- Run | Yrd Mat Min Exi Min Mat Traps Triggered . | . . . . . . Indirectly . | . . . . . . Trap Hack Attempts . | . . . . . . Triggered . | . . . . . . Disarmed . | . . . . . . Reprogrammed . | . . . . . . Reused . | . . . . . . Traps Extracted . | . . . . . . Installed . | . . . . . . Triggered 1 | . . . . 1 . Machines | -11 -10 -10 -10 -9 -8 ---------- Run | Yrd Mat Min Exi Min Mat Machines Disabled . | . . . . . . Max in Single Turn . | . . . . . . Machines Repaired . | . . . . . . Machines Dismantled . | . . . . . . Machines Sabotaged . | . . . . . . Overloaded Fab Kills . | . . . . . . Hacking | -11 -10 -10 -10 -9 -8 --------- Run | Yrd Mat Min Exi Min Mat Machines Accessed 14 | . 5 . 4 2 3 Terminals 8 | . 4 . . 1 3 Fabricators . | . . . . . . Repair Stations . | . . . . . . Recycling Units 1 | . 1 . . . . Scanalyzers . | . . . . . . Garrison Access . | . . . . . . Total Hacks 64 | . 13 . 43 3 5 Successful 56 | . 8 . 43 1 4 Failed 8 | . 5 . . 2 1 Catastrophic 1 | . 1 . . . . Database Lockouts . | . . . . . . Manual 14 | . 7 . 1 1 5 Terminals 17 | . 10 . . 2 5 Fabricators . | . . . . . . Repair Stations . | . . . . . . Recycling Units 3 | . 3 . . . . Scanalyzers . | . . . . . . Garrison Access . | . . . . . . Terminal Hacks 51 | . 6 . 43 1 1 Record 42 | . . . 42 . . Robot Analysis 1 | . 1 . . . . Open Door 1 | . . . . 1 . Level Access Points 1 | . 1 . . . . Branch Access Points 1 | . 1 . . . . Terminal Index 1 | . . . . . 1 Transport Status 1 | . 1 . . . . Hauler Manifests 1 | . 1 . . . . Zone Layout 1 | . 1 . . . . Derelict Proto ID Bank 1 | . . . 1 . . Fabricator Hacks . | . . . . . . Repair Station Hacks . | . . . . . . Recycling Unit Hacks 1 | . 1 . . . . Retrieve Components 1 | . 1 . . . . Scanalyzer . | . . . . . . Garrison Access Hacks . | . . . . . . Unauthorized Hacks 4 | . 1 . . . 3 Terminals 3 | . . . . . 3 Track 1 | . . . . . 1 Assimilate 1 | . . . . . 1 Operators 1 | . . . . . 1 Fabricators . | . . . . . . Repair Stations . | . . . . . . Recycling Units 1 | . 1 . . . . Reject 1 | . 1 . . . . Scanalyzers . | . . . . . . Garrison Access . | . . . . . . Data Cores Recovered . | . . . . . . Used . | . . . . . . Hacking Detections 7 | . 4 . . 1 2 Full Trace Events 1 | . 1 . . . . Feedback Events . | . . . . . . Feedback Blocked . | . . . . . . Robot Schematics Acquired . | . . . . . . Robots Built . | . . . . . . Authchips . | . . . . . . Time . | . . . . . . Total Robot Build Rating . | . . . . . . Part Schematics Acquired . | . . . . . . Parts Built . | . . . . . . Authchips . | . . . . . . Time . | . . . . . . Total Part Build Rating . | . . . . . . Parts Repaired . | . . . . . . Time . | . . . . . . Parts Recycled . | . . . . . . Recycled Matter . | . . . . . . Retrieved Matter . | . . . . . . Retrieved Components 6 | . 6 . . . . Parts Scanalyzed . | . . . . . . Part Schematics Acquired . | . . . . . . Parts Damaged . | . . . . . . Bothacking | -11 -10 -10 -10 -9 -8 ------------ Run | Yrd Mat Min Exi Min Mat Used RIF Installer . | . . . . . . Robots Hacked . | . . . . . . Non-combat . | . . . . . . Combat . | . . . . . . Robot Hacks Applied . | . . . . . . Relay Couplers Released . | . . . . . . Fabnet Peak Effective % . | . . . . . . Robots Rewired . | . . . . . . Allies Hacked . | . . . . . . Hacks Repelled . | . . . . . . Allies | -11 -10 -10 -10 -9 -8 -------- Run | Yrd Mat Min Exi Min Mat Total Allies 5 | . . 5 . . . Largest Group 3 | . . 3 1 . . Highest-Rated Group 47 | . . 47 31 . . Highest-Rated Ally 31 | . . 31 31 . . Total Orders . | . . . . . . Ally Attacks 16 | . . 16 . . . Total Damage 194 | . . 194 . . . Kills 4 | . . 4 . . . Allies Corrupted . | . . . . . . Allies Melted . | . . . . . . Intel | -11 -10 -10 -10 -9 -8 ------- Run | Yrd Mat Min Exi Min Mat Robot Analysis Total 1 | . 1 . . . . Derelict Logs Recovered 1 | . . . . 1 . Drone Launches . | . . . . . . Drone Recoveries . | . . . . . . Exploration | -11 -10 -10 -10 -9 -8 ------------- Run | Yrd Mat Min Exi Min Mat Turns Passed 6885 | 75 1282 1127 1467 1703 1231 Spaces Moved 2199 | 43 565 335 459 486 311 Core 21 | 21 . . . . . Treads 2178 | 22 565 335 459 486 311 Legs . | . . . . . . Wheels . | . . . . . . Hover . | . . . . . . Flight . | . . . . . . Fastest Speed 50 | 50 160 320 320 320 240 Average Speed 274 | 138 201 320 320 320 240 Slowest Speed 320 | 160 320 320 320 320 240 Overloaded Moves . | . . . . . . Propulsion Burnouts . | . . . . . . Robots Hopped . | . . . . . . Cave-ins Triggered . | . . . . . . Exploration Rate (%) 60 | 4 78 79 90 83 29 Regions Visited 5 Branch Regions 3 Pre-discovered Areas 1 | . . . 1 . . Known Exits Taken 1 | . 1 . . . . Unknown Exits Taken 4 | 1 . 1 1 1 . Scrap Searched 3 | . . . . 3 . Spaces Dug . | . . . . . . Terrain Destroyed 38 | . . 9 . 24 5 Melee . | . . . . . . Projectile . | . . . . . . AOE 38 | . . 9 . 24 5 Terrain Rammed . | . . . . . . Walls Destroyed . | . . . . . . Machines Disabled . | . . . . . . Actions | -11 -10 -10 -10 -9 -8 --------- Run | Yrd Mat Min Exi Min Mat Total 2825 | 58 637 376 459 561 734 Wait 434 | 2 14 27 . 22 369 Move 2194 | 42 564 334 458 485 311 Hop . | . . . . . . Pick Up 40 | 8 19 1 1 2 9 Fast Attach . | . . . . . . Attach 18 | 6 1 . . 6 5 Detach . | . . . . . . Swap 9 | . 1 2 . . 6 Drop 6 | . 2 . . . 4 Fire 120 | . 36 9 . 45 30 Melee 3 | . . 3 . . . Ram . | . . . . . . Kick . | . . . . . . Crush 1 | . . . . 1 . Escape Stasis . | . . . . . . Rewire . | . . . . . . Trap . | . . . . . . Miscellaneous . | . . . . . . Route ------- -11/Scrapyard -10/Materials (discovered 4 exits: *Mat x3 / *Min) -10/Mines (discovered 3 exits: *Mat x2 / *Exi) -10/Exiles -9/Mines -8/Materials (discovered 2 exits: [*Sto x2]) History --------- Turn | Location | Event 32 | -11/Scrapyard | Discovered new exit (range 14) 76 | -11/Scrapyard | Entered Materials 173 | -10/Materials | Discovered new exit (range 8) 333 | -10/Materials | Build established: Mutant 345 | -10/Materials | Identified exit to Mines 507 | -10/Materials | Discovered new exit (range 3) 1236 | -10/Materials | Identified exit to Materials 1358 | -10/Materials | Entered Mines 1395 | -10/Mines | Assisted by bots powering up and referring to "LRC-V3" 1434 | -10/Mines | Discovered exit to Materials (range 13) 1702 | -10/Mines | Discovered exit to Materials (range 9) 1743 | -10/Mines | Lost 3 allies 2131 | -10/Mines | Received a Rocket Launcher from a helpful Derelict 2470 | -10/Mines | Deemed a non-threat by the Exiles lab entrance 2470 | -10/Mines | Discovered new exit (range 5) 2485 | -10/Mines | Entered Exiles 2485 | -10/Exiles | Accompanied by 1 ally 2515 | -10/Exiles | Led the pair of lost Derelicts to a safe place 2565 | -10/Exiles | Met 8R-AWN 2623 | -10/Exiles | Met EX-HEX 2828 | -10/Exiles | Met EX-DEC 2899 | -10/Exiles | Visited The Gauntlet 3260 | -10/Exiles | Learned location of Zion (-7) 3317 | -10/Exiles | Met EX-BIN 3541 | -10/Exiles | Aligned with FarCom system 3545 | -10/Exiles | Given EX-Vault access code 3618 | -10/Exiles | Opened EX-Vault 3653 | -10/Exiles | Found 0b10 Alert Chip 3718 | -10/Exiles | Warned to stay clear of 0b10 Research branches 3748 | -10/Exiles | Exiles lab attacked by MAIN.C 3917 | -10/Exiles | Discovered new exit (range 14) 3952 | -10/Exiles | Left Exiles lab with 0b10 Alert Chip 3952 | -10/Exiles | Entered Mines 4061 | -9/Mines | Found a hidden stash of uninstalled traps 4112 | -9/Mines | Learned Materials security intel 4246 | -9/Mines | Build established: Skirmisher 4251 | -9/Mines | Assembled infested the area 4312 | -9/Mines | Destroyed 9 combat bots 4345 | -9/Mines | Lost 7 parts (1p2n1u3w) 4572 | -9/Mines | Build established: Mutant 4682 | -9/Mines | Met a Derelict who couldn't figure out how to use a Trap Extractor 5642 | -9/Mines | Discovered new exit (range 5) 5655 | -9/Mines | Entered Materials 5655 | -8/Materials | Evolved 4 slots: Propulsion x2, Utility x2 5994 | -8/Materials | Discovered new exit (range 19) 6039 | -8/Materials | Discovered new exit (range 19) 6886 | -8/Materials | Self-destructed Last Messages --------------- 06419_ K-01 Serf collects debris. 06422_ Acquired 26 matter. 06434_ Connecting with Terminal... >>Index(Terminals) Found 12 terminals. Downloaded coordinate data. 06482_ Acquired System Shield. 06808_ O-16 Technician: "IFF HANDSHAKE FAILED. SECURING TERMINAL." 06834_ Connecting with Terminal... >>Trojan(Assimilate) Trojan loaded successfully. Testing... System interface override in place. 06838_ O-16 Technician: "IFF HANDSHAKE FAILED. SECURING TERMINAL." 06861_ ALERT: Hostiles spotted, dispatching reinforcements to Terminal M012. 06865_ ALERT: Hostiles spotted, dispatching reinforcements to Terminal M002. Map ----- +----------------------------------------------------+ | ???????????????????????????????????????????# | | ???????????????????????????????????????????# ! | | ???????????????????????????????????????????#! % | | ???????????????????????????????????????????# [ | | ???????????????????????????????????????????#% " | | ???????????????????????????????????????????# " | | ???????????????????????????????????????????# " | | ??????????????????????????????????????????# | | ??????????????????????????????????????????######## | | ?????????????????????????????????????????????????? | | ?????????????????????????????????????????????????? | | ?????????????????????????????????????????????????? | | ?????????????????????????????????????????????????? | | ?????????????????????????????????????????????????? | | ?????????????????????????????????????????????????? | | ?????????????????????????????????????????????????? | | ???????????????????????????????????????????????### | | ???????????????????????????????????????????????# T | | ????????????????????????#######????????????????# | | ????????????????????????#= #????????????????# " | | ????????????????????????# #????????????????# " | | ????????????????????????# #????????????????# " | | ????????????????????????# """#????????????????# | | ????????????????????????# """#????????########### | | ????????????????????????# """#????????# | | ????????????????????????#@ #????????# | | ????????????????????????# """#????????# | | ????????????????????????#= """#????????# ###+### | | ????????????????????????# """#????????# ## """ | | ????????????????????????# #????????# ## """ | | ????????????????????????#! #???????## ## """ | | ??????????????##############/########## #! | | ????????? r # | | ????????? gg T # | | ????????? g ###### | | ???????????############################ #????? | | ??????????????????????????????????????#######????? | | ?????????????????????????????????????????????????? | | ???????????????o?????????????????????????????????? | | ??????????????????????????????????Y??????????????? | | ?????????????????????????????????????????????????? | | ?????????????????????????????????????????????????? | | ?????????????????????????????????????????????????? | | ?????????????????????????????????????????????????? | | ?????????????????????????????????????????????????? | | ?????????????????????????????????????????????????? | | ?????????????????????????????????????????????????? | | ?????????????????????????????????????????????o???? | | ?????????????????????????????????????????????????? | | ?????????????????????????????????????????????????? | +----------------------------------------------------+ Best States ------------- Heat Dissipation 31 Energy Generation 14 Energy Capacity 250 Matter Stores 300 Matter Capacity 300 Sight Range 20 Terrain Scan Range 14 Terrain Scan Density 10 Armor Coverage 300 Resistance: KI 20 Resistance: TH 20 Resistance: EX 20 Resistance: EM 20 Resistance: I 20 Resistance: S 20 Resistance: P 20 Evasion (%) 40 Recoil Reduction 4 Offensive Hacking 10 Item Schematics ----------------- None Robot Schematics ------------------ None Fabricated ------------ Nothing Alien Tech Used ----------------- None Achievements -------------- None Challenges ------------ None Game ------ Seed SingularityDeepInterpreter Manual? 0 Play Time 00:29:27 Cumulative 20.9 hours Start 2024.04.03 @ 09:15:02 End 2024.04.03 @ 09:48:33 Sessions 1 Manual Loads 0 Difficulty Adventurer Special Mode None Game No. 21 Rogue 0 Adventurer 19 Explorer 2 Win Type - Total 0 Types 0/0/0/0/0/0/0/0/0 Lore% 32 Gallery% 26 Achievement% 25 Wizard Run 0 Options --------- Layout 1 ASCII 0 Keyboard 0 Movement Numpad Keybinds 0 Fullscreen 1 Font 24/Smallcaps Map View 50x35 Zoom Use 0% Tactical HUD 1 Map Filters NONE Filters NONE Steam 1 RUN: 1b671abe-8ec3-4877-b91e-1f2db1a6e6dc